[Event "FIDE WCCC Open-08 2024"]
[Site "Montesilvano"]
[Date "2024.11.26"]
[Round "11.39"]
[White "Bisetto, Alessandro Federico"]
[Black "Sverrisson, Dagur"]
[Result "1-0"]
[ECO "C55"]
[WhiteElo "1671"]
[BlackElo "1449"]
[Annotator "NA RC"]
[PlyCount "55"]
[EventDate "2024.11.18"]
[EventType "swiss"]
[EventCountry "ITA"]
[SourceTitle "playchess.com"]
[Source "ChessBase"]
[SourceQuality "1"]
[TimeControl "5400+30"]

1. e4 {[%emt 0:00:07]} e5 {[%emt 0:00:09]} 2. Nf3 {[%emt 0:00:24]} Nc6 {[%emt 0:00:12]} 3. Bc4 {[%emt 0:00:07]} Nf6 {[%emt 0:00:10]} 4. d3 {[%emt 0:00:47]} h6 {[%emt 0:00:13]} 5. O-O {[%emt 0:00:30]} g5 {[%emt 0:00:05]} 6. d4 {[%emt 0:00:31]} d5 {[%emt 0:01:19]} 7. exd5 {[%emt 0:00:13]} e4 {[%emt 0:01:15]} 8. dxc6 {[%emt 0:02:04]} exf3 {[%emt 0:02:26]} 9. Re1+ {[%emt 0:00:05]} Be7 {[%emt 0:00:44]} 10. Qxf3 {[%emt 0:00:12]} bxc6 {[%emt 0:01:48]} 11. Qxf6 {[%emt 0:00:16]} Be6 {[%emt 0:01:32]} 12. Qxh8+ {[%emt 0:00:14]} Bf8 {[%emt 0:00:53]} 13. Bxe6 {[%emt 0:00:06]} fxe6 {[%emt 0:00:17]} 14. Rxe6+ {[%emt 0:00:10]} Kf7 {[%emt 0:00:11]} 15. Rxh6 {[%emt 0:00:31]} Bxh6 {[%emt 0:00:26]} 16. Qxh6 {[%emt 0:00:06]} Qxd4 {[%emt 1:26:50]} 17. Nd2 {[%emt 0:00:36]} Re8 {[%emt 0:00:00]} 18. Qh5+ {[%emt 0:00:19]} Kf8 {[%emt 0:00:00]} 19. Qf3+ {[%emt 0:00:16]} Kg7 {[%emt 0:00:00]} 20. Qc3 {[%emt 0:00:28]} Qxc3 {[%emt 0:00:00]} 21. bxc3 {[%emt 0:00:04]} c5 {[%emt 0:00:00]} 22. Bb2 {[%emt 0:00:05]} Re2 {[%emt 0:00:00]} 23. Rd1 {[%emt 0:00:06]} Re8 {[%emt 0:00:00]} 24. c4+ {[%emt 0:01:23]} Kg6 {[%emt 0:00:00]} 25. Nf3 {[%emt 0:00:00]} g4 {[%emt 0:00:00]} 26. Ne5+ {[%emt 0:00:00]} Kg5 {[%emt 0:00:00]} 27. Re1 {[%emt 0:00:00]} c6 {[%emt 0:00:00]} 28. Nf7+ {[%emt 0:00:00]} 1-0

[Event "FIDE WCCC Open-08 2024"]
[Site "Montesilvano"]
[Date "2024.11.26"]
[Round "11.40"]
[White "Lee, Yoonjae A"]
[Black "Morais, Benjamin Guedes"]
[Result "0-1"]
[ECO "B13"]
[WhiteElo "1546"]
[BlackElo "1652"]
[Annotator "NA RC"]
[PlyCount "110"]
[EventDate "2024.11.18"]
[EventType "swiss"]
[EventCountry "ITA"]
[SourceTitle "playchess.com"]
[Source "ChessBase"]
[SourceQuality "1"]
[TimeControl "5400+30"]

1. e4 {[%emt 0:03:07]} c6 {[%emt 0:00:04]} 2. d4 {[%emt 0:01:55]} d5 {[%emt 0:00:05]} 3. exd5 {[%emt 0:00:37]} cxd5 {[%emt 0:00:05]} 4. Bd3 {[%emt 0:00:04]} Nc6 {[%emt 0:00:08]} 5. c3 {[%emt 0:03:43]} Nf6 {[%emt 0:03:15]} 6. Bf4 {[%emt 0:00:37]} Bg4 {[%emt 0:00:28]} 7. Qb3 {[%emt 0:01:33]} Qc8 {[%emt 0:00:37]} 8. Nd2 {[%emt 0:03:52]} e6 {[%emt 0:04:40]} 9. Ngf3 {[%emt 0:01:15]} Be7 {[%emt 0:00:08]} 10. O-O {[%emt 0:02:33]} O-O {[%emt 0:03:52]} 11. Qc2 {[%emt 0:04:59]} Bf5 {[%emt 0:04:10]} 12. Rae1 {[%emt 0:05:03]} Nb4 13. cxb4 {[%emt 0:02:41]} Qxc2 {[%emt 0:07:16]} 14. Bxc2 {[%emt 0:00:05]} Bxc2 {[%emt 0:00:07]} 15. Rc1 {[%emt 0:00:28]} Rac8 {[%emt 0:00:14]} 16. a3 {[%emt 0:05:42]} Bf5 {[%emt 0:01:14]} 17. Ne5 {[%emt 0:04:19]} Ne4 {[%emt 0:04:06]} 18. Nxe4 {[%emt 0:07:19]} Bxe4 {[%emt 0:00:34]} 19. f3 {[%emt 0:01:39]} Bg6 {[%emt 0:00:27]} 20. Rfe1 {[%emt 0:10:30]} Bf6 {[%emt 0:00:18]} 21. Nd7 {[%emt 0:00:23]} Bxd4+ {[%emt 0:00:24]} 22. Kh1 {[%emt 0:00:08]} Rfd8 {[%emt 0:00:06]} 23. Be5 {[%emt 0:03:46]} Bxe5 {[%emt 0:01:36]} 24. Nxe5 {[%emt 0:01:40]} Kf8 {[%emt 0:00:58]} 25. Nxg6+ {[%emt 0:08:04]} hxg6 {[%emt 0:02:51]} 26. h3 {[%emt 0:01:09]} Ke7 {[%emt 0:05:02]} 27. g4 {[%emt 0:00:19]} Rxc1 {[%emt 0:00:11]} 28. Rxc1 {[%emt 0:00:06]} Kd7 {[%emt 0:00:03]} 29. Kg2 {[%emt 0:00:21]} Rc8 {[%emt 0:00:03]} 30. Rxc8 {[%emt 0:00:04]} Kxc8 {[%emt 0:00:04]} 31. Kg3 {[%emt 0:00:08]} Kd7 {[%emt 0:00:05]} 32. Kf4 {[%emt 0:00:05]} Ke7 {[%emt 0:00:06]} 33. a4 {[%emt 0:00:14]} f6 {[%emt 0:00:05]} 34. b5 {[%emt 0:00:19]} e5+ {[%emt 0:00:10]} 35. Ke3 {[%emt 0:00:05]} Kd6 {[%emt 0:00:04]} 36. b4 {[%emt 0:00:04]} d4+ {[%emt 0:00:11]} 37. Ke4 {[%emt 0:00:20]} Ke6 {[%emt 0:00:05]} 38. a5 {[%emt 0:00:39]} b6 {[%emt 0:00:11]} 39. h4 {[%emt 0:00:11]} f5+ {[%emt 0:00:06]} 40. gxf5+ {[%emt 0:00:10]} gxf5+ {[%emt 0:00:05]} 41. Kd3 {[%emt 0:00:12]} Kd5 {[%emt 0:00:06]} 42. h5 {[%emt 0:00:41]} e4+ {[%emt 0:00:06]} 43. fxe4+ {[%emt 0:00:09]} fxe4+ {[%emt 0:00:05]} 44. Kd2 {[%emt 0:00:07]} Kc4 {[%emt 0:00:04]} 45. axb6 {[%emt 0:00:05]} axb6 {[%emt 0:00:05]} 46. Kc2 {[%emt 0:00:04]} Kxb4 {[%emt 0:00:08]} 47. Kd2 {[%emt 0:00:09]} Kxb5 {[%emt 0:00:04]} 48. h6 {[%emt 0:00:06]} gxh6 {[%emt 0:00:04]} 49. Ke2 {[%emt 0:00:05]} Kc4 {[%emt 0:00:04]} 50. Kd2 {[%emt 0:00:05]} e3+ {[%emt 0:00:05]} 51. Kd1 {[%emt 0:00:05]} Kd3 {[%emt 1:10:55]} 52. Kc1 {[%emt 0:00:08]} e2 {[%emt 0:00:00]} 53. Kb2 {[%emt 0:00:03]} e1=Q {[%emt 0:00:00]} 54. Ka2 {[%emt 0:00:07]} Kc2 {[%emt 0:00:00]} 55. Ka3 {[%emt 0:00:04]} Qa5# {[%emt 0:00:00]} 0-1

[Event "FIDE WCCC Open-08 2024"]
[Site "Montesilvano"]
[Date "2024.11.26"]
[Round "11.41"]
[White "Ameen Akbar T A"]
[Black "Schimming, Wilhelm"]
[Result "0-1"]
[ECO "B96"]
[WhiteElo "1579"]
[BlackElo "1628"]
[Annotator "NA RC"]
[PlyCount "100"]
[EventDate "2024.11.18"]
[EventType "swiss"]
[EventCountry "ITA"]
[SourceTitle "playchess.com"]
[Source "ChessBase"]
[SourceQuality "1"]
[TimeControl "5400+30"]

1. e4 {[%emt 0:00:13]} c5 {[%emt 0:00:32]} 2. Nf3 {[%emt 0:00:48]} d6 {[%emt 0:00:08]} 3. d4 {[%emt 0:00:05]} cxd4 {[%emt 0:00:08]} 4. Nxd4 {[%emt 0:00:07]} Nf6 {[%emt 0:00:05]} 5. Nc3 {[%emt 0:00:50]} a6 {[%emt 0:00:03]} 6. Bg5 {[%emt 0:00:23]} e6 {[%emt 0:00:05]} 7. f4 {[%emt 0:00:06]} Nbd7 {[%emt 0:00:05]} 8. Qf3 {[%emt 0:00:14]} Qc7 {[%emt 0:00:28]} 9. g4 {[%emt 0:08:25]} h6 {[%emt 0:12:36]} 10. Bxf6 {[%emt 0:08:17]} Nxf6 {[%emt 0:01:01]} 11. g5 {[%emt 0:00:30]} hxg5 {[%emt 0:00:05]} 12. fxg5 {[%emt 0:00:22]} Nd7 {[%emt 0:01:28]} 13. Nb3 {[%emt 1:16:40]} Ne5 {[%emt 0:02:35]} 14. Qe2 {[%emt 0:00:00]} Be7 {[%emt 0:00:48]} 15. h4 {[%emt 0:00:00]} Ng6 {[%emt 0:01:24]} 16. Qg4 {[%emt 0:00:00]} Qd8 {[%emt 0:01:24]} 17. Bg2 {[%emt 0:00:00]} Bd7 {[%emt 0:00:53]} 18. O-O-O {[%emt 0:00:00]} Rxh4 {[%emt 0:00:14]} 19. Qg3 {[%emt 0:00:00]} Bxg5+ {[%emt 0:01:35]} 20. Kb1 {[%emt 0:00:00]} Be7 {[%emt 0:00:22]} 21. e5 {[%emt 0:00:00]} d5 {[%emt 0:00:22]} 22. Qf3 {[%emt 0:00:00]} Rxh1 {[%emt 0:00:16]} 23. Bxh1 {[%emt 0:00:00]} Bc6 {[%emt 0:01:52]} 24. Rf1 {[%emt 0:00:00]} Nxe5 {[%emt 0:00:24]} 25. Qg3 {[%emt 0:00:00]} Ng6 {[%emt 0:00:49]} 26. Qf2 {[%emt 0:00:00]} Bf6 {[%emt 0:01:20]} 27. Nd4 {[%emt 0:00:00]} Qb6 {[%emt 0:02:01]} 28. Nce2 {[%emt 0:00:00]} e5 {[%emt 0:01:25]} 29. Nf5 {[%emt 0:00:00]} Qxf2 {[%emt 0:00:53]} 30. Rxf2 {[%emt 0:00:00]} Kd7 {[%emt 0:02:20]} 31. Nxg7 {[%emt 0:00:00]} Rh8 {[%emt 0:07:13]} 32. Ng3 {[%emt 0:00:00]} Bxg7 {[%emt 0:02:49]} 33. Rxf7+ {[%emt 0:00:00]} Ke6 {[%emt 0:00:07]} 34. Rxg7 {[%emt 0:00:00]} Kf6 {[%emt 0:00:34]} 35. Rc7 {[%emt 0:00:00]} Rh3 {[%emt 0:00:06]} 36. Bxd5 {[%emt 0:00:00]} Bxd5 {[%emt 0:00:10]} 37. Rc3 {[%emt 0:00:00]} Rh2 {[%emt 0:01:03]} 38. b3 {[%emt 0:00:00]} Kg5 {[%emt 0:00:37]} 39. Rd3 {[%emt 0:00:00]} Kf4 {[%emt 0:00:44]} 40. Ne2+ {[%emt 0:00:00]} Rxe2 {[%emt 0:00:06]} 41. Rxd5 {[%emt 0:00:00]} e4 {[%emt 0:00:33]} 42. Rd7 {[%emt 0:00:00]} e3 {[%emt 0:00:35]} 43. Rf7+ {[%emt 0:00:00]} Kg5 {[%emt 0:00:06]} 44. Rxb7 {[%emt 0:00:00]} Rd2 {[%emt 0:00:14]} 45. Rb4 {[%emt 0:00:00]} Rd1+ {[%emt 0:00:35]} 46. Kb2 {[%emt 0:00:00]} Kf5 {[%emt 0:01:03]} 47. Ra4 {[%emt 0:00:37]} e2 {[%emt 0:00:04]} 48. Ra5+ {[%emt 0:00:08]} Ne5 {[%emt 0:00:05]} 49. Rxa6 {[%emt 0:00:30]} e1=Q {[%emt 0:00:06]} 50. Ra8 {[%emt 0:00:47]} Nc4+ {[%emt 0:00:12]} 0-1

[Event "FIDE WCCC Open-08 2024"]
[Site "Montesilvano"]
[Date "2024.11.26"]
[Round "11.42"]
[White "Vrsalovic Acuna. Stjepan Anton"]
[Black "Tokmachov, Daniel"]
[Result "1/2-1/2"]
[ECO "B19"]
[WhiteElo "1452"]
[BlackElo "1565"]
[Annotator "NA RC"]
[PlyCount "101"]
[EventDate "2024.11.18"]
[EventType "swiss"]
[EventCountry "ITA"]
[SourceTitle "playchess.com"]
[Source "ChessBase"]
[SourceQuality "1"]
[TimeControl "5400+30"]

1. e4 {[%emt 0:00:10]} c6 {[%emt 0:00:05]} 2. d4 {[%emt 0:00:47]} d5 {[%emt 0:00:02]} 3. Nc3 {[%emt 0:01:39]} dxe4 {[%emt 0:00:02]} 4. Nxe4 {[%emt 0:01:05]} Bf5 {[%emt 0:00:02]} 5. Ng3 {[%emt 0:00:52]} Bg6 {[%emt 0:00:01]} 6. h4 {[%emt 0:00:43]} h6 {[%emt 0:00:10]} 7. h5 {[%emt 0:00:56]} Bh7 {[%emt 0:00:06]} 8. Nf3 {[%emt 0:00:37]} Nd7 {[%emt 0:00:18]} 9. Bd3 {[%emt 0:01:48]} Bxd3 {[%emt 0:01:08]} 10. Qxd3 {[%emt 0:02:06]} e6 {[%emt 0:00:05]} 11. Bd2 {[%emt 0:01:10]} Ngf6 {[%emt 0:00:22]} 12. O-O-O {[%emt 0:01:33]} Qc7 {[%emt 0:02:52]} 13. Ne4 {[%emt 0:03:29]} Nxe4 {[%emt 0:01:08]} 14. Qxe4 {[%emt 0:01:22]} Bd6 {[%emt 0:01:50]} 15. Rhe1 {[%emt 0:04:22]} O-O-O {[%emt 0:00:58]} 16. g3 {[%emt 0:02:15]} Nf6 {[%emt 0:02:55]} 17. Qd3 {[%emt 0:04:00]} Rhe8 {[%emt 0:03:00]} 18. Qb3 {[%emt 0:02:22]} Nxh5 {[%emt 0:05:55]} 19. Rh1 {[%emt 0:01:20]} Nf6 {[%emt 0:00:25]} 20. Rhe1 {[%emt 0:02:24]} Nd7 {[%emt 0:05:35]} 21. Bb4 {[%emt 0:02:30]} Bxb4 {[%emt 0:00:52]} 22. Qxb4 {[%emt 0:00:12]} Kb8 {[%emt 0:00:57]} 23. Qc3 {[%emt 0:03:47]} Rc8 {[%emt 0:00:54]} 24. Ne5 {[%emt 0:03:49]} Nxe5 {[%emt 0:01:25]} 25. dxe5 {[%emt 0:00:09]} Rcd8 {[%emt 0:01:08]} 26. f4 {[%emt 0:58:03]} Rxd1+ {[%emt 0:00:14]} 27. Rxd1 {[%emt 0:00:00]} Rd8 {[%emt 0:00:32]} 28. Rd4 {[%emt 0:00:00]} Rxd4 {[%emt 0:00:45]} 29. Qxd4 {[%emt 0:01:30]} Qe7 {[%emt 0:03:03]} 30. c4 {[%emt 0:00:00]} a6 {[%emt 0:01:27]} 31. c5 {[%emt 0:00:00]} g5 {[%emt 0:02:31]} 32. b4 {[%emt 0:00:00]} gxf4 {[%emt 0:01:19]} 33. Qxf4 {[%emt 0:00:00]} Qg5 {[%emt 0:00:08]} 34. Kd2 {[%emt 0:00:00]} Qxf4+ {[%emt 0:00:31]} 35. gxf4 {[%emt 0:00:00]} Kc7 {[%emt 0:00:08]} 36. Ke3 {[%emt 0:00:00]} b6 {[%emt 0:00:10]} 37. Kf3 {[%emt 0:00:00]} a5 {[%emt 0:00:49]} 38. a3 {[%emt 0:00:00]} axb4 {[%emt 0:00:46]} 39. axb4 {[%emt 0:00:00]} bxc5 {[%emt 0:00:12]} 40. bxc5 {[%emt 0:00:00]} Kd7 {[%emt 0:00:28]} 41. Kg4 {[%emt 0:00:00]} Ke7 {[%emt 0:01:18]} 42. Kh5 {[%emt 0:00:00]} Kf8 {[%emt 0:01:01]} 43. Kxh6 {[%emt 0:00:00]} Ke8 {[%emt 0:01:19]} 44. Kg5 {[%emt 0:00:00]} Kf8 {[%emt 0:00:54]} 45. Kf6 {[%emt 0:00:00]} Ke8 {[%emt 0:00:17]} 46. Kg5 {[%emt 0:00:00]} Ke7 {[%emt 0:05:33]} 47. Kh6 {[%emt 0:00:00]} Kf8 {[%emt 0:02:40]} 48. Kh7 {[%emt 0:00:00]} Ke8 {[%emt 0:00:39]} 49. Kg8 {[%emt 0:00:00]} Ke7 {[%emt 0:00:25]} 50. Kg7 {[%emt 0:00:00]} Ke8 {[%emt 0:00:02]} 51. Kg8 {[%emt 0:00:00]} 1/2-1/2

[Event "FIDE WCCC Open-08 2024"]
[Site "Montesilvano"]
[Date "2024.11.26"]
[Round "11.43"]
[White "Kortmann, Pedro Reck"]
[Black "Solovev, Nikolai"]
[Result "0-1"]
[ECO "B22"]
[WhiteElo "1630"]
[BlackElo "1446"]
[Annotator "NA RC"]
[PlyCount "70"]
[EventDate "2024.11.18"]
[EventType "swiss"]
[EventCountry "ITA"]
[SourceTitle "playchess.com"]
[Source "ChessBase"]
[SourceQuality "1"]
[TimeControl "5400+30"]

1. e4 {[%emt 0:00:03]} c5 {[%emt 0:00:03]} 2. c3 {[%emt 0:00:08]} d5 {[%emt 0:00:04]} 3. exd5 {[%emt 0:00:40]} Qxd5 {[%emt 0:00:06]} 4. d4 {[%emt 0:01:05]} Nc6 {[%emt 0:00:08]} 5. Nf3 {[%emt 0:01:43]} Bg4 {[%emt 0:00:12]} 6. Be2 {[%emt 0:00:37]} cxd4 {[%emt 0:00:07]} 7. cxd4 {[%emt 0:00:16]} e6 {[%emt 0:00:08]} 8. O-O {[%emt 0:00:33]} Nf6 {[%emt 0:01:42]} 9. Nc3 {[%emt 0:00:19]} Qa5 {[%emt 0:00:06]} 10. Bd2 {[%emt 0:01:53]} Bb4 {[%emt 0:00:05]} 11. a3 {[%emt 0:00:39]} Bxc3 {[%emt 0:00:06]} 12. Bxc3 {[%emt 0:00:31]} Qb6 {[%emt 0:00:03]} 13. Re1 {[%emt 0:01:25]} O-O {[%emt 0:00:13]} 14. h3 {[%emt 0:00:54]} Bh5 {[%emt 0:00:17]} 15. b4 {[%emt 0:00:50]} Ne4 {[%emt 0:03:08]} 16. Bb2 {[%emt 0:00:55]} Rfd8 {[%emt 0:00:40]} 17. Bd3 {[%emt 0:02:26]} Nf6 {[%emt 0:00:26]} 18. g4 {[%emt 0:00:45]} Bg6 {[%emt 0:00:15]} 19. Bxg6 {[%emt 0:00:44]} hxg6 {[%emt 0:01:45]} 20. g5 {[%emt 0:00:48]} Nd5 {[%emt 0:01:23]} 21. Rc1 {[%emt 0:01:09]} a5 {[%emt 0:02:36]} 22. Ne5 {[%emt 0:02:10]} Nxe5 {[%emt 0:03:25]} 23. Rxe5 {[%emt 0:01:02]} axb4 {[%emt 0:00:45]} 24. axb4 {[%emt 0:01:24]} Qxb4 {[%emt 0:00:33]} 25. Rb1 {[%emt 0:02:43]} Nc3 {[%emt 0:00:57]} 26. Bxc3 {[%emt 0:00:44]} Qxc3 {[%emt 0:00:09]} 27. Rxb7 {[%emt 0:00:30]} Rxd4 {[%emt 0:00:27]} 28. Qe2 {[%emt 0:02:40]} Ra1+ {[%emt 0:01:05]} 29. Kh2 {[%emt 0:00:44]} Rd2 {[%emt 0:00:39]} 30. Qe3 {[%emt 0:01:50]} Rd3 {[%emt 0:00:32]} 31. Rb8+ {[%emt 0:01:00]} Kh7 {[%emt 0:00:16]} 32. Qf4 {[%emt 0:00:27]} Rxh3+ {[%emt 0:00:31]} 33. Kg2 {[%emt 0:00:20]} Rg1+ {[%emt 0:00:24]} 34. Kxg1 {[%emt 0:01:21]} Qa1+ {[%emt 0:00:03]} 35. Kg2 {[%emt 0:01:37]} Qh1# {[%emt 1:24:41]} 0-1

[Event "FIDE WCCC Open-08 2024"]
[Site "Montesilvano"]
[Date "2024.11.26"]
[Round "11.44"]
[White "Cronje, Frederick"]
[Black "Khantulga, Tuvshinbayar"]
[Result "0-1"]
[ECO "C51"]
[WhiteElo "1434"]
[BlackElo "1611"]
[Annotator "NA RC"]
[PlyCount "54"]
[EventDate "2024.11.18"]
[EventType "swiss"]
[EventCountry "ITA"]
[SourceTitle "playchess.com"]
[Source "ChessBase"]
[SourceQuality "1"]
[TimeControl "5400+30"]

1. e4 {[%emt 0:00:30]} e5 {[%emt 0:00:06]} 2. Nf3 {[%emt 0:00:30]} Nc6 {[%emt 0:00:15]} 3. Bc4 {[%emt 0:00:30]} Bc5 {[%emt 0:00:05]} 4. b4 {[%emt 0:00:30]} Bxb4 {[%emt 0:00:08]} 5. c3 {[%emt 0:00:09]} Be7 {[%emt 0:02:04]} 6. d4 {[%emt 0:00:17]} exd4 {[%emt 0:01:46]} 7. Qb3 {[%emt 0:00:17]} dxc3 {[%emt 0:03:25]} 8. Bxf7+ {[%emt 0:00:31]} Kf8 {[%emt 0:00:02]} 9. Bxg8 {[%emt 0:01:08]} Rxg8 {[%emt 0:01:03]} 10. Nxc3 {[%emt 0:01:23]} g5 {[%emt 0:04:07]} 11. O-O {[%emt 0:02:37]} g4 {[%emt 0:00:08]} 12. Bh6+ {[%emt 0:00:37]} Rg7 {[%emt 0:01:12]} 13. Bxg7+ {[%emt 0:00:39]} Kxg7 {[%emt 0:00:06]} 14. Nd2 {[%emt 0:00:59]} Bd6 {[%emt 0:00:39]} 15. f4 {[%emt 0:02:21]} Bc5+ {[%emt 0:02:50]} 16. Kh1 {[%emt 0:02:14]} d6 {[%emt 0:01:34]} 17. Nd5 {[%emt 0:00:46]} Nd4 {[%emt 0:07:18]} 18. Qc3 {[%emt 0:02:30]} Kg8 {[%emt 0:02:36]} 19. Nb3 {[%emt 0:01:58]} Ne2 {[%emt 0:03:03]} 20. Qc4 {[%emt 0:01:50]} Qh4 {[%emt 0:01:02]} 21. Nxc7+ {[%emt 0:02:19]} Kh8 {[%emt 0:00:19]} 22. Qxe2 {[%emt 0:00:25]} g3 {[%emt 0:00:14]} 23. h3 {[%emt 0:09:59]} Bxh3 {[%emt 0:00:08]} 24. Qb2+ {[%emt 0:00:14]} Kg8 {[%emt 0:00:13]} 25. Qg7+ {[%emt 0:00:37]} Kxg7 {[%emt 0:00:07]} 26. Nxc5 {[%emt 0:00:25]} Bg4+ {[%emt 0:00:07]} 27. Kg1 {[%emt 0:00:21]} Qh2# {[%emt 0:00:04]} 0-1

[Event "FIDE WCCC Open-08 2024"]
[Site "Montesilvano"]
[Date "2024.11.26"]
[Round "11.45"]
[White "Kakagiannis, Stylianos"]
[Black "Chanishvili, Noa"]
[Result "1/2-1/2"]
[ECO "B13"]
[WhiteElo "1423"]
[BlackElo "1553"]
[Annotator "NA RC"]
[PlyCount "46"]
[EventDate "2024.11.18"]
[EventType "swiss"]
[EventCountry "ITA"]
[SourceTitle "playchess.com"]
[Source "ChessBase"]
[SourceQuality "1"]
[TimeControl "5400+30"]

1. e4 {[%emt 0:00:03]} c6 {[%emt 0:00:12]} 2. d4 {[%emt 0:00:11]} d5 {[%emt 0:00:16]} 3. exd5 {[%emt 0:00:12]} cxd5 {[%emt 0:00:18]} 4. Bd3 {[%emt 0:00:16]} Nc6 {[%emt 0:01:04]} 5. c3 {[%emt 0:01:49]} Qc7 {[%emt 0:00:25]} 6. h3 {[%emt 0:02:01]} Nf6 {[%emt 0:02:39]} 7. Nf3 {[%emt 0:04:14]} e6 {[%emt 0:05:12]} 8. Nbd2 {[%emt 0:08:23]} Bd6 {[%emt 0:01:14]} 9. Nb3 {[%emt 0:06:32]} Bd7 {[%emt 0:01:49]} 10. Be3 {[%emt 0:04:14]} h6 {[%emt 0:05:02]} 11. Rc1 {[%emt 0:04:04]} Rc8 {[%emt 0:01:13]} 12. O-O {[%emt 0:04:35]} O-O {[%emt 0:01:03]} 13. Qd2 {[%emt 0:04:38]} Rfe8 {[%emt 0:03:54]} 14. Rfe1 {[%emt 0:02:56]} Na5 {[%emt 0:02:51]} 15. Nxa5 {[%emt 0:01:16]} Qxa5 {[%emt 0:00:21]} 16. a3 {[%emt 0:08:47]} Bb5 {[%emt 0:02:17]} 17. Bxb5 {[%emt 0:19:39]} Qxb5 {[%emt 0:00:42]} 18. Rc2 {[%emt 0:00:56]} Ne4 {[%emt 1:08:58]} 19. Qc1 {[%emt 0:00:57]} Rc7 {[%emt 0:00:00]} 20. Bf4 {[%emt 0:00:39]} Rc6 {[%emt 0:00:00]} 21. Bxd6 {[%emt 0:00:12]} Nxd6 {[%emt 0:01:30]} 22. Nd2 {[%emt 0:05:32]} Nc4 {[%emt 0:00:00]} 23. Nxc4 {[%emt 0:00:11]} Qxc4 {[%emt 0:00:00]} 1/2-1/2

[Event "FIDE WCCC Open-08 2024"]
[Site "Montesilvano"]
[Date "2024.11.26"]
[Round "11.46"]
[White "Katsarski, Yan"]
[Black "Xin, Andrew M."]
[Result "1-0"]
[ECO "C02"]
[WhiteElo "1418"]
[BlackElo "1546"]
[Annotator "NA RC"]
[PlyCount "75"]
[EventDate "2024.11.18"]
[EventType "swiss"]
[EventCountry "ITA"]
[SourceTitle "playchess.com"]
[Source "ChessBase"]
[SourceQuality "1"]
[TimeControl "5400+30"]

1. e4 {[%emt 0:01:06]} e6 {[%emt 0:00:08]} 2. d4 {[%emt 0:01:31]} d5 {[%emt 0:00:09]} 3. e5 {[%emt 0:02:17]} c5 {[%emt 0:00:06]} 4. c3 {[%emt 0:01:24]} Nc6 {[%emt 0:00:07]} 5. Nf3 {[%emt 0:00:18]} Bd7 {[%emt 0:00:30]} 6. a3 {[%emt 0:01:31]} Nge7 {[%emt 0:00:44]} 7. b4 {[%emt 0:00:33]} cxd4 {[%emt 0:00:30]} 8. cxd4 {[%emt 0:00:18]} a6 {[%emt 0:00:18]} 9. Bb2 {[%emt 0:00:32]} Rc8 {[%emt 0:01:05]} 10. Nc3 {[%emt 0:00:41]} Nf5 {[%emt 0:00:19]} 11. Be2 {[%emt 0:00:32]} Qb6 {[%emt 0:00:15]} 12. Na4 {[%emt 0:00:19]} Qa7 {[%emt 0:01:16]} 13. Nc5 {[%emt 0:00:30]} Bxc5 {[%emt 0:01:51]} 14. bxc5 {[%emt 0:00:14]} b6 {[%emt 0:00:47]} 15. cxb6 {[%emt 0:00:43]} Qxb6 {[%emt 0:00:09]} 16. Rb1 {[%emt 0:00:44]} Rb8 {[%emt 0:01:13]} 17. Bd3 {[%emt 0:02:27]} Qa7 {[%emt 0:03:16]} 18. Bxf5 {[%emt 0:01:18]} exf5 {[%emt 0:00:22]} 19. O-O {[%emt 0:00:37]} Na5 {[%emt 0:00:12]} 20. Bc3 {[%emt 0:02:14]} Nc4 {[%emt 0:02:53]} 21. Rxb8+ {[%emt 0:02:20]} Qxb8 {[%emt 0:00:03]} 22. Bb4 {[%emt 0:00:27]} h5 {[%emt 0:01:38]} 23. Nd2 {[%emt 0:00:35]} Bb5 {[%emt 0:00:59]} 24. Nxc4 {[%emt 0:00:45]} Bxc4 {[%emt 0:00:14]} 25. Bd6 {[%emt 0:00:18]} Qd8 {[%emt 0:01:24]} 26. Re1 {[%emt 0:00:53]} g5 {[%emt 0:00:25]} 27. g3 {[%emt 0:00:58]} g4 {[%emt 0:01:42]} 28. Qc2 {[%emt 0:01:02]} Qg5 {[%emt 0:01:18]} 29. Rb1 {[%emt 0:01:20]} Kd7 {[%emt 0:04:24]} 30. Rb7+ {[%emt 0:00:52]} Kc6 {[%emt 0:00:17]} 31. Rc7+ {[%emt 0:01:01]} Kb6 {[%emt 0:02:18]} 32. Qb2+ {[%emt 0:00:43]} Bb5 {[%emt 0:00:39]} 33. a4 {[%emt 0:01:02]} h4 {[%emt 0:02:18]} 34. axb5 {[%emt 0:00:27]} axb5 {[%emt 0:02:02]} 35. Qc3 {[%emt 0:00:57]} Ra8 {[%emt 0:07:46]} 36. Qc5+ {[%emt 0:01:03]} Ka5 {[%emt 0:00:10]} 37. Ra7+ {[%emt 0:00:37]} Rxa7 {[%emt 0:00:12]} 38. Qxa7# {[%emt 0:00:22]} 1-0

[Event "FIDE WCCC Open-08 2024"]
[Site "Montesilvano"]
[Date "2024.11.26"]
[Round "11.48"]
[White "Senthilkumar, Tharveen"]
[Black "Nguyen Thanh San"]
[Result "1-0"]
[ECO "B23"]
[WhiteElo "1411"]
[BlackElo "1493"]
[Annotator "NA RC"]
[PlyCount "68"]
[EventDate "2024.11.18"]
[EventType "swiss"]
[EventCountry "ITA"]
[SourceTitle "playchess.com"]
[Source "ChessBase"]
[SourceQuality "1"]
[TimeControl "5400+30"]

1. e4 {[%emt 0:00:04]} c5 {[%emt 0:00:11]} 2. Nc3 {[%emt 0:00:08]} d6 {[%emt 0:00:03]} 3. f4 {[%emt 0:00:13]} Nc6 {[%emt 0:00:16]} 4. Nf3 {[%emt 0:00:18]} Nf6 {[%emt 0:00:50]} 5. Bb5 {[%emt 1:32:17]} Bd7 {[%emt 0:06:23]} 6. Bc4 {[%emt 0:00:00]} a6 {[%emt 0:01:54]} 7. a4 {[%emt 0:00:00]} Qc7 {[%emt 0:11:40]} 8. O-O {[%emt 0:00:00]} h6 {[%emt 0:01:34]} 9. Re1 {[%emt 0:00:00]} e5 {[%emt 0:08:22]} 10. f5 {[%emt 0:00:00]} Nd4 {[%emt 0:00:32]} 11. Nd5 {[%emt 0:00:00]} Nxd5 {[%emt 0:01:13]} 12. Bxd5 {[%emt 0:00:00]} Bc6 {[%emt 0:00:30]} 13. Bxc6+ {[%emt 0:00:00]} Qxc6 {[%emt 0:02:04]} 14. Nxd4 {[%emt 0:00:00]} cxd4 {[%emt 0:03:33]} 15. d3 {[%emt 0:00:00]} Rc8 {[%emt 0:01:40]} 16. Re2 {[%emt 0:00:00]} Be7 {[%emt 0:00:54]} 17. b3 {[%emt 0:00:00]} Bf6 {[%emt 0:08:32]} 18. Ra2 {[%emt 0:00:00]} Ke7 {[%emt 0:00:21]} 19. Bd2 {[%emt 0:00:00]} Rh7 {[%emt 0:14:02]} 20. Qb1 {[%emt 0:00:00]} Bg5 {[%emt 0:02:22]} 21. Bxg5+ {[%emt 0:00:00]} hxg5 {[%emt 0:00:45]} 22. Qc1 {[%emt 0:00:00]} f6 {[%emt 0:05:22]} 23. g3 {[%emt 0:00:00]} d5 {[%emt 0:03:52]} 24. Qe1 {[%emt 0:00:00]} Rch8 {[%emt 0:03:07]} 25. c4 {[%emt 0:00:00]} dxc3 {[%emt 0:01:00]} 26. exd5 {[%emt 0:00:00]} Qc5+ {[%emt 0:00:03]} 27. Re3 {[%emt 0:00:00]} c2 {[%emt 0:00:47]} 28. d4 {[%emt 0:00:00]} Qxd4 {[%emt 0:06:56]} 29. Rxc2 {[%emt 0:00:00]} Kd8 {[%emt 0:02:15]} 30. Qc1 {[%emt 0:00:00]} Qb6 {[%emt 0:00:35]} 31. Kh1 {[%emt 0:00:00]} Kd7 {[%emt 0:00:47]} 32. Rec3 {[%emt 0:00:00]} Qd4 {[%emt 0:02:51]} 33. Rc7+ {[%emt 0:00:00]} Kd6 {[%emt 0:00:42]} 34. R2c6+ {[%emt 0:00:00]} Kxd5 {[%emt 0:11:32]} 1-0